[Event "WCCC U12 2019"]
[Site "Weifang"]
[Date "2019.08.29"]
[Round "8.6"]
[White "Wu, David Tai-Wei"]
[Black "Wang, Alex Yuxuan"]
[Result "0-1"]
[ECO "D87"]
[WhiteElo "2083"]
[BlackElo "1713"]
[Annotator "NA"]
[PlyCount "78"]
[EventDate "2019.08.21"]
[EventType "swiss"]
[EventCountry "CHN"]
[SourceTitle "playchess.com"]
[Source "ChessBase"]
[SourceQuality "1"]
[TimeControl "40/5400+30:1800+30"]

1. d4 {[%emt 0:00:00]} Nf6 {[%emt 0:00:00]} 2. c4 {[%emt 0:00:00]} g6 {[%emt 0:00:00]} 3. Nc3 {[%emt 0:00:00]} d5 {[%emt 0:00:00]} 4. cxd5 {[%emt 0:00:00]} Nxd5 {[%emt 0:00:00]} 5. e4 {[%emt 0:00:00]} Nxc3 {[%emt 0:00:00]} 6. bxc3 {[%emt 0:00:00]} Bg7 {[%emt 0:00:06]} 7. Bc4 {[%emt 0:00:00]} c5 {[%emt 0:00:07]} 8. Ne2 {[%emt 0:00:04]} Nc6 {[%emt 0:00:11]} 9. Be3 {[%emt 0:00:04]} O-O {[%emt 0:00:09]} 10. O-O {[%emt 0:00:03]} Qc7 {[%emt 0:01:03]} 11. Rc1 {[%emt 0:00:05]} b6 {[%emt 0:00:14]} 12. f4 {[%emt 0:09:12]} e6 {[%emt 0:01:15]} 13. Kh1 {[%emt 0:11:58]} Na5 {[%emt 0:25:39]} 14. Bd3 {[%emt 0:00:17]} f5 {[%emt 0:00:40]} 15. e5 {[%emt 0:23:09]} c4 {[%emt 0:00:44]} 16. Bc2 {[%emt 0:01:18]} Bb7 {[%emt 0:00:29]} 17. h3 {[%emt 0:10:03]} Qd7 {[%emt 0:16:32]} 18. Bf2 {[%emt 0:03:05]} b5 {[%emt 0:01:18]} 19. Rb1 {[%emt 0:00:26]} Qd5 {[%emt 0:01:47]} 20. Rg1 {[%emt 0:00:08]} Nc6 {[%emt 0:00:57]} 21. a4 {[%emt 0:12:31]} a6 {[%emt 0:00:16]} 22. Bh4 {[%emt 0:01:46]} Rf7 {[%emt 0:02:58]} 23. Kh2 {[%emt 0:04:24]} h5 {[%emt 0:26:19]} 24. Qe1 {[%emt 0:19:17]} Kh7 {[%emt 0:01:08]} 25. g4 {[%emt 0:00:50]} hxg4 {[%emt 0:17:26]} 26. hxg4 {[%emt 0:00:05]} Rh8 {[%emt 0:00:29]} 27. gxf5 {[%emt 0:03:37]} gxf5 {[%emt 0:00:11]} 28. Rg5 {[%emt 0:00:57]} Bh6 {[%emt 0:01:02]} 29. Rg3 {[%emt 0:00:27]} Ne7 {[%emt 0:01:56]} 30. Qf2 {[%emt 0:00:39]} Ng6 {[%emt 0:00:22]} 31. Bf6 {[%emt 0:00:29]} Bg7 {[%emt 0:01:30]} 32. Rh3+ {[%emt 0:00:25]} Kg8 {[%emt 0:00:11]} 33. Rg1 {[%emt 0:00:35]} Rxh3+ {[%emt 0:00:45]} 34. Kxh3 {[%emt 0:00:30]} Bxf6 {[%emt 0:00:11]} 35. Rxg6+ {[%emt 0:00:00]} Rg7 {[%emt 0:00:34]} 36. Rxg7+ {[%emt 0:00:44]} Bxg7 {[%emt 0:00:04]} 37. Ng3 {[%emt 0:01:14]} a5 {[%emt 0:00:45]} 38. axb5 {[%emt 0:00:00]} Qxb5 {[%emt 0:00:03]} 39. Nh5 {[%emt 0:00:00]} Qd5 {[%emt 0:00:00]} 0-1

[Event "WCCC U12 2019"]
[Site "Weifang"]
[Date "2019.08.29"]
[Round "8.7"]
[White "Wang, Xiaozhi"]
[Black "Volkov, Maksim"]
[Result "0-1"]
[ECO "D00"]
[WhiteElo "1719"]
[BlackElo "1969"]
[Annotator "NA"]
[PlyCount "124"]
[EventDate "2019.08.21"]
[EventType "swiss"]
[EventCountry "CHN"]
[SourceTitle "playchess.com"]
[Source "ChessBase"]
[SourceQuality "1"]
[TimeControl "40/5400+30:1800+30"]

1. d4 {[%emt 0:00:00]} d5 {[%emt 0:00:00]} 2. Bf4 {[%emt 0:00:00]} e6 {[%emt 0:00:14]} 3. e3 {[%emt 0:00:00]} Bd6 {[%emt 0:00:25]} 4. Bg3 {[%emt 0:00:00]} Ne7 {[%emt 0:00:52]} 5. Nf3 {[%emt 0:00:14]} O-O {[%emt 0:10:09]} (5... c5 6. c3 Nbc6 7. Nbd2 Nf5 8. Bxd6 Qxd6 9. Bd3 Nfe7 10. O-O O-O 11. Re1 h6 12. e4 cxd4 {0-1 (37) Grischuk,A (2781)-Topalov,V (2798) Stavanger 2015}) 6. c4 {[%emt 0:03:08] D00: 1 d4 d5: Unusual lines} b6 $146 {[%emt 0:05:05]} ({Predecessor:} 6... Nbc6 7. Nc3 Bd7 8. a3 a6 9. Qc2 dxc4 10. Bxc4 Nf5 11. O-O Nxg3 12. hxg3 e5 {½-½ (21) Sorcinelli,A (2106)-Janosi,E (2138) LSS email 2012}) 7. Nc3 {[%emt 0:02:00]} Bb7 {[%emt 0:01:50]} 8. Bd3 {[%emt 0:01:31]} Nd7 {[%emt 0:02:34]} 9. O-O {[%emt 0:01:45]} Nf6 {[%emt 0:03:11]} 10. Rc1 {[%emt 0:01:37]} a6 {[%emt 0:02:43]} 11. cxd5 {[%emt 0:03:51]} exd5 {[%emt 0:01:06]} 12. Qc2 {[%emt 0:06:57]} c5 {[%emt 0:04:13]} 13. b3 {[%emt 0:05:32]} Rc8 {[%emt 0:02:37]} 14. Qe2 {[%emt 0:01:10]} b5 {[%emt 0:12:11]} 15. Bxd6 {[%emt 0:05:25]} Qxd6 {[%emt 0:00:24]} 16. dxc5 {[%emt 0:00:51]} Rxc5 {[%emt 0:05:53]} 17. Qd2 {[%emt 0:03:08]} Rcc8 {[%emt 0:09:24]} 18. Ne2 {[%emt 0:04:28]} Rcd8 {[%emt 0:09:06]} 19. Nfd4 {[%emt 0:05:15]} b4 {[%emt 0:02:03]} 20. Rc2 {[%emt 0:04:11]} a5 {[%emt 0:03:35]} 21. Rfc1 {[%emt 0:03:50]} Rc8 {[%emt 0:04:15]} 22. Nb5 {[%emt 0:04:17]} Qb6 {[%emt 0:02:05]} 23. Ned4 {[%emt 0:08:50]} Rxc2 {[%emt 0:02:34]} 24. Rxc2 {[%emt 0:00:20]} Rc8 {[%emt 0:00:11]} 25. Ne2 {[%emt 0:07:50]} Ng6 {[%emt 0:04:43]} 26. Nbd4 {[%emt 0:01:39]} Ne5 {[%emt 0:00:40]} 27. Rxc8+ {[%emt 0:06:27]} Bxc8 {[%emt 0:00:04]} 28. Bc2 {[%emt 0:00:55]} g6 {[%emt 0:01:25]} 29. Nf4 {[%emt 0:01:28]} Ba6 {[%emt 0:00:31]} 30. h3 {[%emt 0:02:19]} Qc7 {[%emt 0:01:22]} 31. Nde2 {[%emt 0:06:47]} g5 {[%emt 0:02:38]} 32. Nd3 {[%emt 0:01:09]} Ne4 {[%emt 0:00:07]} 33. Qd1 {[%emt 0:00:54]} Nd7 {[%emt 0:01:11]} 34. Ne1 {[%emt 0:03:40]} Nef6 {[%emt 0:02:54]} 35. Nf3 {[%emt 0:01:24]} h6 {[%emt 0:01:30]} 36. Ng3 {[%emt 0:01:21]} g4 {[%emt 0:01:19]} 37. hxg4 {[%emt 0:00:47]} Nxg4 {[%emt 0:00:02]} 38. Nf5 {[%emt 0:01:25]} Ndf6 {[%emt 0:00:31]} 39. g3 {[%emt 0:01:07]} h5 {[%emt 0:01:00]} 40. Nh2 {[%emt 0:00:00]} Ne5 {[%emt 0:00:00]} 41. f4 {[%emt 0:05:18]} Neg4 {[%emt 0:05:10]} 42. Nxg4 {[%emt 0:03:39]} hxg4 {[%emt 0:00:25]} 43. Qd2 $11 {[%emt 0:18:48]} Bc8 {[%emt 0:10:28]} 44. Qd3 {[%emt 0:02:21]} Ne4 {[%emt 0:04:56]} 45. Nd4 {[%emt 0:01:47]} Qb6 {[%emt 0:04:31]} 46. Kg2 {[%emt 0:02:20]} Qh6 {[%emt 0:00:30]} 47. Ne2 {[%emt 0:00:58]} Qh3+ {[%emt 0:05:25]} 48. Kg1 {[%emt 0:00:04]} Nxg3 {[%emt 0:00:38]} 49. Nxg3 {[%emt 0:00:32]} Qxg3+ {[%emt 0:00:00]} 50. Kf1 {[%emt 0:00:06]} Qh3+ {[%emt 0:00:00]} 51. Ke1 {[%emt 0:01:06]} Qh1+ {[%emt 0:00:16]} 52. Kd2 {[%emt 0:00:09]} g3 {[%emt 0:00:20]} 53. Qb5 {[%emt 0:00:55]} Qh2+ {[%emt 0:01:47]} 54. Kc1 {[%emt 0:00:05]} Qh5 {[%emt 0:02:04]} 55. Qe8+ {[%emt 0:00:28]} Kg7 {[%emt 0:00:04]} 56. f5 {[%emt 0:00:53]} g2 {[%emt 0:01:29]} 57. Qe5+ {[%emt 0:00:11]} f6 {[%emt 0:00:16]} 58. Qc7+ {[%emt 0:00:41]} Bd7 {[%emt 0:00:16]} 59. Qxd7+ {[%emt 0:00:26]} Qf7 {[%emt 0:00:06]} 60. Qd6 {[%emt 0:00:48]} g1=Q+ {[%emt 0:00:08]} 61. Kb2 {[%emt 0:00:13]} Qxe3 {[%emt 0:00:16]} 62. Qc6 {[%emt 0:00:33]} Qc3+ {[%emt 0:00:11]} 0-1

[Event "WCCC U12 2019"]
[Site "Weifang"]
[Date "2019.08.29"]
[Round "8.8"]
[White "Xue, Haowen"]
[Black "Ji, Jiadong"]
[Result "0-1"]
[ECO "B18"]
[WhiteElo "1917"]
[BlackElo "1703"]
[Annotator "NA"]
[PlyCount "142"]
[EventDate "2019.08.21"]
[EventType "swiss"]
[EventCountry "CHN"]
[SourceTitle "playchess.com"]
[Source "ChessBase"]
[SourceQuality "1"]
[TimeControl "40/5400+30:1800+30"]

1. e4 {[%emt 0:00:00]} c6 {[%emt 0:01:02]} 2. d4 {[%emt 0:00:57]} d5 {[%emt 0:00:03]} 3. Nc3 {[%emt 0:00:34]} dxe4 {[%emt 0:00:04]} 4. Nxe4 {[%emt 0:00:03]} Bf5 {[%emt 0:00:12]} 5. Ng3 {[%emt 0:00:07]} Bg6 {[%emt 0:00:05]} 6. Nh3 {[%emt 0:01:33]} h6 {[%emt 0:04:36]} 7. Nf4 {[%emt 0:01:08]} Bh7 {[%emt 0:00:01]} 8. Bc4 {[%emt 0:06:25]} Nf6 {[%emt 0:10:59]} 9. O-O {[%emt 0:01:53] B18: Classical Caro-Kann: 4...Bf5 sidelines} Na6 {[%emt 0:10:38]} 10. Ngh5 $146 {[%emt 0:22:43]} ({Predecessor:} 10. c3 Nc7 11. Qb3 e6 12. Qxb7 Qd7 13. Ngh5 Nfd5 14. Nxd5 cxd5 15. Bb5 Qxb5 16. Qxc7 Qb6 {1-0 (46) Lugovskoy,M (2489)-Mikhailov,S (2304) Taganrog 2016}) 10... e6 {[%emt 0:12:37]} 11. Bxe6 {[%emt 0:34:54]} fxe6 {[%emt 0:01:27]} 12. Nxe6 {[%emt 0:00:05]} Qd5 {[%emt 0:11:08]} 13. Qe2 {[%emt 0:11:07]} Kf7 {[%emt 0:02:49]} 14. Nhf4 {[%emt 0:03:40]} Qe4 {[%emt 0:03:06]} 15. Qc4 {[%emt 0:00:44]} Nd5 {[%emt 0:00:10]} 16. Qb3 {[%emt 0:03:33]} Rb8 {[%emt 0:04:00]} 17. c4 {[%emt 0:01:25]} Nxf4 {[%emt 0:04:14]} 18. Bxf4 {[%emt 0:01:25]} Qxe6 {[%emt 0:04:03]} 19. Bxb8 {[%emt 0:00:05]} Nxb8 {[%emt 0:00:01]} 20. Qxb7+ {[%emt 0:00:18]} Be7 {[%emt 0:00:32]} 21. d5 {[%emt 0:02:19]} cxd5 {[%emt 0:01:16]} 22. Rfe1 {[%emt 0:01:55]} Qd7 {[%emt 0:00:09]} 23. Qxd5+ {[%emt 0:00:21]} Qxd5 {[%emt 0:00:04]} 24. cxd5 {[%emt 0:00:04]} Rd8 {[%emt 0:00:26]} 25. Red1 {[%emt 0:01:05]} Be4 {[%emt 0:01:12]} 26. Rd4 {[%emt 0:00:26]} Bxd5 {[%emt 0:01:36]} 27. Rad1 {[%emt 0:00:05]} Ke6 {[%emt 0:00:01]} 28. Re1+ {[%emt 0:00:24]} Kd6 {[%emt 0:00:11]} 29. Rxd5+ {[%emt 0:00:27]} Kxd5 {[%emt 0:00:07]} 30. Rxe7 {[%emt 0:00:04]} Rd7 {[%emt 0:00:16]} 31. Re3 {[%emt 0:01:18]} Rb7 {[%emt 0:00:55]} 32. b3 {[%emt 0:00:11]} Nc6 {[%emt 0:00:05]} 33. h4 {[%emt 0:01:41]} Nb4 {[%emt 0:00:26]} 34. Re2 {[%emt 0:00:45]} Kd4 {[%emt 0:00:16]} 35. g4 {[%emt 0:01:30]} Kd3 {[%emt 0:00:12]} 36. Kf1 {[%emt 0:01:00]} Rc7 {[%emt 0:00:27]} 37. Re3+ {[%emt 0:00:44]} Kd2 {[%emt 0:01:07]} 38. g5 {[%emt 0:00:37]} hxg5 {[%emt 0:05:24]} 39. hxg5 {[%emt 0:00:05]} g6 {[%emt 0:00:03]} 40. a3 {[%emt 0:00:00]} Nd5 {[%emt 0:00:00]} 41. Rf3 $19 {[%emt 0:19:39]} Nc3 {[%emt 0:05:49]} 42. Rf6 {[%emt 0:01:53]} Rg7 {[%emt 0:00:06]} 43. Ra6 {[%emt 0:02:13]} Kc2 {[%emt 0:00:59]} 44. b4 {[%emt 0:00:39]} Kb3 {[%emt 0:00:08]} 45. Kg2 {[%emt 0:06:47]} Na4 {[%emt 0:04:02]} 46. Rd6 {[%emt 0:01:21]} Kxa3 {[%emt 0:00:36]} 47. Rd4 {[%emt 0:00:47]} Rb7 {[%emt 0:03:47]} 48. Rd6 {[%emt 0:01:33]} Rb6 {[%emt 0:01:35]} 49. Rd7 {[%emt 0:00:17]} a6 {[%emt 0:00:10]} 50. f4 {[%emt 0:00:39]} Kxb4 {[%emt 0:00:08]} 51. Kf3 {[%emt 0:00:27]} Nc5 {[%emt 0:00:47]} 52. Rd4+ {[%emt 0:00:27]} Kc3 {[%emt 0:00:06]} 53. Rd5 {[%emt 0:00:05]} Kc4 {[%emt 0:00:04]} 54. Re5 {[%emt 0:00:10]} a5 {[%emt 0:01:47]} 55. Kg4 {[%emt 0:00:16]} a4 {[%emt 0:00:40]} 56. f5 {[%emt 0:00:09]} a3 {[%emt 0:00:33]} 57. fxg6 {[%emt 0:00:16]} Rxg6 {[%emt 0:01:17]} 58. Kf5 {[%emt 0:00:08]} a2 {[%emt 0:01:03]} 59. Re1 {[%emt 0:00:56]} Rg8 {[%emt 0:00:55]} 60. g6 {[%emt 0:00:00]} Nd7 {[%emt 0:00:33]} 61. Kg5 {[%emt 0:00:55]} Nf8 {[%emt 0:00:57]} 62. Kf6 {[%emt 0:00:18]} Rxg6+ {[%emt 0:00:04]} 63. Kf7 {[%emt 0:00:06]} Ra6 {[%emt 0:00:03]} 64. Kxf8 {[%emt 0:00:11]} a1=Q {[%emt 0:00:04]} 65. Rxa1 {[%emt 0:00:07]} Rxa1 {[%emt 0:00:03]} 66. Kg7 {[%emt 0:00:07]} Ra6 {[%emt 0:00:06]} 67. Kh7 {[%emt 0:00:05]} Kd5 {[%emt 0:00:03]} 68. Kg7 {[%emt 0:00:06]} Ke5 {[%emt 0:00:04]} 69. Kh7 {[%emt 0:00:07]} Kf6 {[%emt 0:00:34]} 70. Kh6 {[%emt 0:00:05]} Ra5 {[%emt 0:00:00]} 71. Kh7 {[%emt 0:00:04]} Rh5+ {[%emt 0:00:00]} 0-1

[Event "WCCC U12 2019"]
[Site "Weifang"]
[Date "2019.08.29"]
[Round "8.9"]
[White "Khubukshanov, Erdem"]
[Black "Li, Shanglin"]
[Result "1-0"]
[ECO "B12"]
[WhiteElo "2257"]
[BlackElo "1919"]
[Annotator "RC"]
[PlyCount "73"]
[EventDate "2019.08.21"]
[EventType "swiss"]
[EventCountry "CHN"]
[SourceTitle "playchess.com"]
[Source "ChessBase"]
[SourceQuality "1"]
[TimeControl "40/5400+30:1800+30"]

1. e4 {[%emt 0:00:00]} c6 {[%emt 0:00:39]} 2. d4 {[%emt 0:00:00]} d5 {[%emt 0:00:27]} 3. e5 {[%emt 0:00:09]} c5 {[%emt 0:01:22]} 4. dxc5 {[%emt 0:00:13]} e6 {[%emt 0:00:17]} 5. Nf3 {[%emt 0:00:57]} Bxc5 {[%emt 0:01:18]} 6. Bd3 {[%emt 0:02:53]} h6 {[%emt 0:12:11]} 7. O-O {[%emt 0:01:51]} Nc6 {[%emt 0:00:22]} 8. a3 {[%emt 0:01:21]} Nge7 {[%emt 0:00:58]} 9. b4 {[%emt 0:01:08]} Bb6 {[%emt 0:00:12]} 10. Bb2 {[%emt 0:00:48]} O-O {[%emt 0:06:23]} 11. Nc3 {[%emt 0:07:52]} Ng6 {[%emt 0:14:41]} 12. Bxg6 {[%emt 0:11:26]} fxg6 {[%emt 0:00:08]} 13. Ne2 {[%emt 0:01:22]} Ne7 {[%emt 0:01:46]} 14. Qd3 {[%emt 0:06:13]} Bd7 {[%emt 0:06:48]} 15. c4 {[%emt 0:01:20]} Qe8 {[%emt 0:04:03]} 16. c5 {[%emt 0:04:14]} Bb5 {[%emt 0:02:45]} 17. Qd2 {[%emt 0:00:50]} Bc7 {[%emt 0:00:20]} 18. Rfe1 {[%emt 0:01:08]} Nf5 {[%emt 0:04:35]} 19. Ned4 {[%emt 0:02:42]} Bd7 {[%emt 0:03:00]} 20. a4 {[%emt 0:04:22]} g5 {[%emt 0:03:06]} 21. Nxf5 {[%emt 0:04:42]} Rxf5 {[%emt 0:00:21]} 22. b5 {[%emt 0:01:44]} Qf7 {[%emt 0:13:43]} 23. a5 {[%emt 0:10:41]} g4 {[%emt 0:07:52]} 24. Nd4 {[%emt 0:03:56]} Rxe5 {[%emt 0:01:52]} 25. b6 {[%emt 0:02:19]} Rxe1+ {[%emt 0:06:29]} 26. Qxe1 {[%emt 0:00:18]} axb6 {[%emt 0:02:20]} 27. axb6 {[%emt 0:12:21]} Rxa1 {[%emt 0:00:33]} 28. Qxa1 {[%emt 0:01:54]} Be5 {[%emt 0:01:57]} 29. c6 {[%emt 0:05:33]} bxc6 {[%emt 0:00:22]} 30. b7 {[%emt 0:01:54]} Be8 {[%emt 0:00:08]} 31. Qa8 {[%emt 0:04:24]} Qg6 {[%emt 0:00:32]} 32. Qa1 {[%emt 0:01:17]} Qf7 {[%emt 0:01:07]} 33. Nxe6 {[%emt 0:02:09]} Bb8 {[%emt 0:00:30]} 34. Nxg7 {[%emt 0:00:08]} Bd7 {[%emt 0:00:21]} 35. Be5 {[%emt 0:00:11]} Qf8 {[%emt 0:00:51]} 36. Bxb8 {[%emt 0:00:12]} Qb4 {[%emt 0:00:04]} 37. Nh5 {[%emt 0:00:22]} 1-0

[Event "WCCC U12 2019"]
[Site "Weifang"]
[Date "2019.08.29"]
[Round "8.10"]
[White "Dev, Shah"]
[Black "Jin Yueheng"]
[Result "1/2-1/2"]
[ECO "D36"]
[WhiteElo "2161"]
[BlackElo "1832"]
[Annotator "ChessBase"]
[PlyCount "210"]
[EventDate "2019.08.21"]
[EventType "swiss"]
[EventCountry "CHN"]
[SourceTitle "playchess.com"]
[Source "ChessBase"]
[SourceQuality "1"]
[TimeControl "40/5400+30:1800+30"]

1. d4 {[%emt 0:00:31]} d5 {[%emt 0:00:00]} 2. c4 {[%emt 0:00:29]} e6 {[%emt 0:00:27]} 3. Nc3 {[%emt 0:00:30]} Nf6 {[%emt 0:00:33]} 4. cxd5 {[%emt 0:00:29]} exd5 {[%emt 0:00:09]} 5. Bg5 {[%emt 0:00:31]} Be7 {[%emt 0:00:26]} 6. e3 {[%emt 0:00:30]} c6 {[%emt 0:00:30]} 7. Bd3 {[%emt 0:00:30]} O-O {[%emt 0:00:12]} 8. Qc2 {[%emt 0:00:30]} Nbd7 {[%emt 0:00:32]} 9. Nge2 {[%emt 0:00:30]} Re8 {[%emt 0:00:12]} 10. f3 {[%emt 0:00:30]} Nf8 {[%emt 0:03:47]} 11. O-O {[%emt 0:00:25]} g6 {[%emt 0:04:22]} 12. Rad1 {[%emt 0:00:51]} Ne6 {[%emt 0:00:05]} 13. Bh4 {[%emt 0:00:23]} Ng7 {[%emt 0:01:24]} 14. Bf2 {[%emt 0:01:44]} Be6 {[%emt 0:05:15]} 15. Kh1 {[%emt 0:07:11]} Rc8 {[%emt 0:03:04]} 16. e4 {[%emt 0:02:25]} Qa5 {[%emt 0:03:09]} 17. a3 {[%emt 0:03:21]} Nd7 {[%emt 0:09:50]} 18. b4 {[%emt 0:02:34]} Qc7 {[%emt 0:02:32]} 19. Rb1 {[%emt 0:06:11]} Nb6 {[%emt 0:02:07]} 20. a4 {[%emt 0:04:05]} dxe4 {[%emt 0:09:40]} 21. fxe4 {[%emt 0:02:10]} f5 {[%emt 0:00:05]} 22. Bg3 {[%emt 0:04:34]} Qd7 {[%emt 0:02:08]} 23. d5 {[%emt 0:06:05]} fxe4 {[%emt 0:00:42]} 24. Nxe4 {[%emt 0:15:29]} Nxd5 {[%emt 0:05:46]} 25. Qd2 {[%emt 0:03:32]} Bf5 {[%emt 0:06:03]} 26. b5 {[%emt 0:06:05]} Bf8 {[%emt 0:10:20]} 27. Ng5 {[%emt 0:05:43]} Ne3 {[%emt 0:05:18]} 28. Rb3 {[%emt 0:14:40]} h6 {[%emt 0:10:49]} 29. Rf3 {[%emt 0:03:04]} Qd5 {[%emt 0:08:45]} 30. Nc1 {[%emt 0:05:44]} Bc5 {[%emt 0:03:28]} 31. Bf4 {[%emt 0:00:58]} hxg5 {[%emt 0:00:11]} 32. Bxe3 {[%emt 0:00:08]} Bxe3 {[%emt 0:01:08]} 33. Rxe3 {[%emt 0:00:14]} Rxe3 {[%emt 0:00:04]} 34. Qxe3 {[%emt 0:00:17]} Re8 {[%emt 0:00:05]} 35. Qg1 {[%emt 0:02:56]} Bh3 {[%emt 0:03:09]} 36. Bf1 {[%emt 0:00:33]} Re1 {[%emt 0:00:43]} 37. Rxh3 {[%emt 0:01:23]} g4 {[%emt 0:00:47]} 38. Rd3 {[%emt 0:00:40]} Qf5 {[%emt 0:00:41]} 39. Rf3 {[%emt 0:00:17]} gxf3 {[%emt 0:00:09]} 40. Bc4+ {[%emt 0:00:00]} Re6 {[%emt 0:00:00]} 41. Nd3 {[%emt 0:08:07]} cxb5 {[%emt 0:03:28]} 42. axb5 {[%emt 0:00:15]} Qe4 {[%emt 0:00:51]} 43. Bxe6+ {[%emt 0:09:01]} Nxe6 {[%emt 0:00:26]} 44. Nf2 {[%emt 0:02:01]} fxg2+ {[%emt 0:00:08]} 45. Qxg2 {[%emt 0:00:00]} Qe1+ {[%emt 0:01:02]} 46. Qg1 {[%emt 0:00:14]} Qxg1+ {[%emt 0:03:04]} 47. Kxg1 {[%emt 0:00:01]} Nd4 {[%emt 0:00:30]} 48. b6 {[%emt 0:00:06]} a5 {[%emt 0:05:34]} 49. Nd3 {[%emt 0:03:45]} a4 {[%emt 0:00:12]} 50. Kf2 {[%emt 0:00:11]} Nb3 {[%emt 0:14:02]} 51. Ke3 {[%emt 0:02:19]} Kf7 {[%emt 0:01:47]} 52. Nb4 {[%emt 0:01:40]} Ke6 {[%emt 0:01:12]} 53. Kd3 {[%emt 0:01:19]} Na5 {[%emt 0:03:13]} 54. Kc3 {[%emt 0:01:36]} Kd6 {[%emt 0:02:18]} 55. Nd3 {[%emt 0:00:31]} Nc6 {[%emt 0:00:14]} 56. Nb2 {[%emt 0:00:56]} a3 {[%emt 0:00:34]} 57. Nc4+ {[%emt 0:00:12]} Kc5 {[%emt 0:00:03]} 58. Nxa3 {[%emt 0:00:10]} Kxb6 {[%emt 0:00:05]} 59. Kc4 {[%emt 0:03:27]} Kc7 {[%emt 0:01:09]} 60. Kd5 {[%emt 0:01:53]} Kd7 {[%emt 0:00:05]} 61. Nb5 {[%emt 0:01:37]} Nd8 {[%emt 0:00:57]} 62. Nd6 {[%emt 0:00:29]} Ke7 {[%emt 0:00:52]} 63. Ne4 {[%emt 0:01:20]} Ne6 {[%emt 0:00:30]} 64. Nc3 {[%emt 0:01:18]} Nf8 {[%emt 0:00:08]} 65. Ke5 {[%emt 0:00:18]} Nd7+ {[%emt 0:00:04]} 66. Kf4 {[%emt 0:00:13]} Kf6 {[%emt 0:00:21]} 67. h4 {[%emt 0:01:07]} Kg7 {[%emt 0:01:28]} 68. Kg5 {[%emt 0:00:21]} Nc5 {[%emt 0:00:10]} 69. Nb5 {[%emt 0:00:48]} Ne6+ {[%emt 0:00:05]} 70. Kg4 {[%emt 0:00:05]} Kh6 {[%emt 0:00:04]} 71. Nd6 {[%emt 0:00:52]} b6 {[%emt 0:00:03]} 72. Nb5 {[%emt 0:00:11]} Nc5 {[%emt 0:00:09]} 73. Nd6 {[%emt 0:00:24]} Nd7 {[%emt 0:00:15]} 74. Nf7+ {[%emt 0:00:38]} Kg7 {[%emt 0:00:09]} 75. Nd6 {[%emt 0:00:17]} Ne5+ {[%emt 0:02:51]} 76. Kf4 {[%emt 0:00:48]} Nf7 {[%emt 0:00:05]} 77. Nb5 {[%emt 0:00:14]} Kh6 {[%emt 0:00:31]} 78. Kg4 {[%emt 0:00:13]} Ne5+ {[%emt 0:00:06]} 79. Kf4 {[%emt 0:00:05]} Nd7 {[%emt 0:00:04]} 80. Nd4 {[%emt 0:01:02]} Kh5 {[%emt 0:00:13]} 81. Kg3 {[%emt 0:00:03]} Nc5 {[%emt 0:00:28]} 82. Ne2 {[%emt 0:00:47]} Ne6 {[%emt 0:00:21]} 83. Nc3 {[%emt 0:00:38]} Nd4 {[%emt 0:00:37]} 84. Nd5 {[%emt 0:00:26]} b5 {[%emt 0:00:04]} 85. Nf4+ {[%emt 0:00:06]} Kh6 {[%emt 0:00:03]} 86. Kf2 {[%emt 0:00:13]} Nf5 {[%emt 0:00:05]} 87. Ng2 {[%emt 0:00:41]} Kg7 {[%emt 0:00:49]} 88. Ke2 {[%emt 0:00:36]} Kf6 {[%emt 0:00:21]} 89. Kd3 {[%emt 0:00:22]} Ke5 {[%emt 0:00:03]} 90. Kc3 {[%emt 0:00:21]} Kd6 {[%emt 0:00:25]} 91. Kb4 {[%emt 0:00:44]} Kc6 {[%emt 0:00:17]} 92. Kc3 {[%emt 0:01:36]} Kc5 {[%emt 0:00:06]} 93. Kb3 {[%emt 0:00:08]} Nd4+ {[%emt 0:00:34]} 94. Kb2 {[%emt 0:00:27]} Nf5 {[%emt 0:00:45]} 95. Kb3 {[%emt 0:00:06]} Kb6 {[%emt 0:00:03]} 96. Kb4 {[%emt 0:00:17]} Ka6 {[%emt 0:00:03]} 97. Nf4 {[%emt 0:00:43]} Nxh4 {[%emt 0:00:05]} 98. Ne6 {[%emt 0:00:05]} Kb6 {[%emt 0:02:52]} 99. Nd4 {[%emt 0:00:18]} g5 {[%emt 0:00:22]} 100. Nxb5 {[%emt 0:00:07]} g4 {[%emt 0:01:36]} 101. Nd4 {[%emt 0:00:11]} g3 {[%emt 0:00:19]} 102. Ne2 {[%emt 0:00:11]} g2 {[%emt 0:00:04]} 103. Kc4 {[%emt 0:00:08]} Nf3 {[%emt 0:00:14]} 104. Kd3 {[%emt 0:00:45]} Kc5 {[%emt 0:00:09]} 105. Ke3 {[%emt 0:00:00]} Nd4 {[%emt 0:00:04]} 1/2-1/2